Cogmind - Beta 10.2 @@@ ROGUE MODE // 2021.01.03 @ 19:12:28 Player: sentrybuster Result: Self-destructed Performance ------------- Evolutions (1) 500 Regions Visited (2) 400 Robots Destroyed (8) 40 Value Destroyed (246) 246 Prototype IDs (0) 0 Alien Tech Used (0) 0 Bonus (0) 0 TOTAL SCORE: 1186 Bonus ------- None Cogmind --------- Core Integrity 400/400 Matter 270/300 Energy 100/100 System Corruption 0% Temperature Cool (0) Movement Rolling (100) Location -9/Materials Parts ------- > --- POWER (1) -------- (None) > --- PROPULSION (2) --- Compact Wheel > --- UTILITY (3) ------ Small Storage Unit Visual Processing Unit > --- WEAPON (3) ------- Assault Rifle Autogun Autogun > --- INVENTORY (6) ---- Aluminum Leg Aluminum Leg Peak State ------------ > --- POWER ------------ (None) > --- PROPULSION ------- Compact Wheel > --- UTILITY ---------- Small Storage Unit Visual Processing Unit > --- WEAPON ----------- Assault Rifle Autogun Autogun > --- INVENTORY -------- Aluminum Leg Aluminum Leg [Rating: 9] Favorites ----------- Power Light Ion Engine Engine Light Ion Engine Propulsion Compact Wheel Wheel Compact Wheel Utility Small Storage Unit Storage Small Storage Unit Processor Visual Processing Unit Weapon Assault Rifle Energy Gun Medium Laser Ballistic Gun Assault Rifle Build | -11 -10 -9 ------- Run | Scr Mat Mat Slots Evolved 2 | . . 2 Power . | . . . Propulsion . | . . . Utility 1 | . . 1 Weapon 1 | . . 1 Parts Attached 12 | 6 3 3 Power 2 | 1 1 . Engine 2 | 1 1 . Core . | . . . Reactor . | . . . Propulsion 3 | 2 1 . Treads . | . . . Leg . | . . . Wheel 3 | 2 1 . Hover . | . . . Flight . | . . . Utility 2 | 1 . 1 Device . | . . . Storage 1 | 1 . . Processor 1 | . . 1 Hackware . | . . . Protection . | . . . Artifact . | . . . Weapon 5 | 2 1 2 Energy Gun 2 | 1 1 . Energy Cannon . | . . . Ballistic Gun 3 | 1 . 2 Ballistic Cannon . | . . . Launcher . | . . . Special Weapon . | . . . Impact Weapon . | . . . Slashing Weapon . | . . . Piercing Weapon . | . . . Special Melee Weapon . | . . . Unidentified Prototypes . | . . . Parts Lost 6 | . 6 . Power 2 | . 2 . Propulsion 2 | . 2 . Utility . | . . . Weapon 2 | . 2 . Highest Loss Streak 4 | . 4 . Average Slot Usage (%) 62 | . 67 57 Engine 5 | . 10 . Wheel 14 | . 18 11 Storage 12 | . 14 11 Processor 4 | . . 8 Energy Gun 4 | . 9 . Ballistic Gun 20 | . 14 27 Naked Turns . | . . . Heaviest Build 12 | 11 11 12 Greatest Support 32 | 32 32 16 Greatest Overweight (x) . | . . . Average Overweight (x) . | . . . Largest Inventory Capacity 6 | 6 6 6 Average Capacity 5 | 5 6 6 Most Carried 4 | 4 4 2 Average Carried 2 | 2 3 2 Final Capacity 6 | 6 6 6 Final Carried 4 | 4 2 2 Class Distribution -------------------- 62% | Mutant 37% | Skirmisher Dominant Class ---------------- Mutant | -10/Materials Skirmisher | -9/Materials Resources | -11 -10 -9 ----------- Run | Scr Mat Mat Matter Collected 344 | 254 90 . Remotely . | . . . Salvage Created 255 | . 255 . Parts 17 | . 17 . Haulers Intercepted . | . . . Recyclers Shooed . | . . . Parts Field Recycled . | . . . Retrieved Matter . | . . . Parts Self-Destructed . | . . . Prevented . | . . . Kills | -11 -10 -9 ------- Run | Scr Mat Mat Combat Hostiles Destroyed 8 | . 8 . Guns 5 | . 5 . AOE 3 | . 3 . Classes Destroyed 2 | . 2 . Swarmer 3 | . 3 . Grunt 5 | . 5 . Best Kill Streak 4 | . 4 . Combat Bots Only 4 | . 4 . Max Kills in Single Turn 3 | . 3 . Gunslinging . | . . . Exploded 3 | . 3 . Melee . | . . . Uniques/NPCs Destroyed . | . . . Combat | -11 -10 -9 -------- Run | Scr Mat Mat Damage Taken 577 | . 577 . Core 179 | . 179 . Absorbed by Shields . | . . . Core Remaining (%) 64 | 100 28 . Volleys Fired 28 | . 28 . Largest 2 | . 2 . Hottest 70 | . 70 . Shots Fired 47 | . 47 . Gun 47 | . 47 . Cannon . | . . . Launcher . | . . . Special . | . . . Kinetic 28 | . 28 . Thermal 19 | . 19 . Explosive . | . . . Electromagnetic . | . . . Robot Hit Streak 8 | . 8 . Robot Miss Streak 2 | . 2 . Penetration Max . | . . . Secondary Targets . | . . . Shots Hit Robots 28 | . 28 . Core Hits 17 | . 17 . Critical Hits . | . . . Critical Kills . | . . . Critical Parts Destroyed . | . . . Melee Attacks . | . . . Impact . | . . . Slashing . | . . . Piercing . | . . . Sneak Attacks . | . . . Combat Hostiles . | . . . Follow-up Attacks . | . . . Damage Inflicted 534 | . 534 . Guns 358 | . 358 . Cannons . | . . . Explosions 171 | . 171 . Melee . | . . . Ramming 5 | . 5 . Kinetic 232 | . 232 . Thermal 126 | . 126 . Explosive . | . . . Electromagnetic 171 | . 171 . Impact . | . . . Slashing . | . . . Piercing . | . . . Highest Corruption 1 | . 1 . Average Corruption 1 | . 1 . Corruption Purged . | . . . Effects 2 | . 2 . Message Errors 1 | . 1 . Data Loss (minor) 1 | . 1 . Overload Shots . | . . . Overflow Damage 3 | . 3 . Projectiles . | . . . Explosions 3 | . 3 . Melee . | . . . Knockbacks . | . . . Impact . | . . . Kinetic . | . . . Secondary . | . . . Self-Inflicted Damage 30 | . 30 . Shots 1 | . 1 . Rammed 2 | . 2 . Targets Rammed 2 | . 2 . Kicked . | . . . Crushed . | . . . Highest Temperature 126 | . 126 . Average Temperature 50 | . 50 . Received Heat Transfer 270 | . 270 . Siege Activations . | . . . Robots Corrupted . | . . . Combat Hostiles . | . . . Parts Fried . | . . . Impact Corruptions . | . . . Robots Melted . | . . . Combat Hostiles . | . . . Parts Melted . | . . . Heat Transferred 335 | . 335 . Parts Sabotaged . | . . . Parts Stolen . | . . . Parts Stripped . | . . . Power Chain Reactions . | . . . Missiles Intercepted . | . . . Alert | -11 -10 -9 ------- Run | Scr Mat Mat Peak Influence 370 | . 370 181 Initial 156 | . . 156 Average 187 | . 234 177 Maximum Alert Level 1 | . 1 . Low Security (%) 70 | 100 36 100 Level 1 29 | . 63 . Level 2 . | . . . Level 3 . | . . . Level 4 . | . . . Level 5 . | . . . High Security . | . . . Max Security . | . . . Squads Dispatched 1 | . 1 . Investigation . | . . . Extermination . | . . . Reinforcement 1 | . 1 . Assault . | . . . Garrison . | . . . Intercept . | . . . Construction Impeded . | . . . Haulers Reinforced . | . . . Stealth | -11 -10 -9 --------- Run | Scr Mat Mat Distress Signals 2 | . 2 . Communications Jammed . | . . . Distress Signals . | . . . Times Spotted 17 | . 16 1 Peak Tracking Total 4 | . 4 1 Tactical Retreats 1 | . 1 . Traps | -11 -10 -9 ------- Run | Scr Mat Mat Traps Triggered . | . . . Indirectly . | . . . Trap Hack Attempts . | . . . Triggered . | . . . Disarmed . | . . . Reprogrammed . | . . . Reused . | . . . Traps Extracted . | . . . Installed . | . . . Triggered . | . . . Machines | -11 -10 -9 ---------- Run | Scr Mat Mat Machines Disabled 2 | . 2 . Max in Single Turn 2 | . 2 . Machines Sabotaged . | . . . Garrisons Compromised . | . . . Overloaded Fab Kills . | . . . Fab Network Shutdowns . | . . . Hacking | -11 -10 -9 --------- Run | Scr Mat Mat Machines Accessed 4 | . 3 1 Terminals 4 | . 3 1 Fabricators . | . . . Repair Stations . | . . . Recycling Units . | . . . Scanalyzers . | . . . Garrison Access . | . . . Total Hacks 13 | . 7 6 Successful 8 | . 5 3 Failed 5 | . 2 3 Catastrophic 1 | . . 1 Database Lockouts . | . . . Manual 8 | . 4 4 Terminals 13 | . 7 6 Fabricators . | . . . Repair Stations . | . . . Recycling Units . | . . . Scanalyzers . | . . . Garrison Access . | . . . Terminal Hacks 5 | . 4 1 Alert Level 1 | . 1 . Locate Traps 1 | . 1 . Zone Layout 3 | . 2 1 Fabricator Hacks . | . . . Repair Station Hacks . | . . . Recycling Unit Hacks . | . . . Scanalyzer . | . . . Garrison Access Hacks . | . . . Unauthorized Hacks 3 | . 1 2 Terminals 3 | . 1 2 Track 2 | . 1 1 Botnet 1 | . . 1 Fabricators . | . . . Repair Stations . | . . . Recycling Units . | . . . Scanalyzers . | . . . Garrison Access . | . . . Data Cores Recovered . | . . . Used . | . . . Hacking Detections 4 | . 3 1 Full Trace Events . | . . . Feedback Events . | . . . Feedback Blocked . | . . . Robot Schematics Acquired . | . . . Robots Built . | . . . Matter . | . . . Time . | . . . Total Robot Build Rating . | . . . Part Schematics Acquired . | . . . Parts Built . | . . . Matter . | . . . Time . | . . . Total Part Build Rating . | . . . Parts Repaired . | . . . Time . | . . . Parts Recycled . | . . . Recycled Matter . | . . . Retrieved Matter . | . . . Retrieved Components . | . . . Parts Scanalyzed . | . . . Part Schematics Acquired . | . . . Parts Damaged . | . . . Bothacking | -11 -10 -9 ------------ Run | Scr Mat Mat Used RIF Installer . | . . . Robots Hacked . | . . . Non-combat . | . . . Combat . | . . . Robot Hacks Applied . | . . . Relay Couplers Released . | . . . Robots Rewired . | . . . Allies Hacked . | . . . Hacks Repelled . | . . . Allies | -11 -10 -9 -------- Run | Scr Mat Mat Total Allies . | . . . Largest Group . | . . . Highest-Rated Group . | . . . Highest-Rated Ally . | . . . Total Orders . | . . . Ally Attacks . | . . . Total Damage . | . . . Kills . | . . . Allies Corrupted . | . . . Allies Melted . | . . . Intel | -11 -10 -9 ------- Run | Scr Mat Mat Robot Analysis Total . | . . . Derelict Logs Recovered . | . . . Drone Launches . | . . . Drone Recoveries . | . . . Exploration | -11 -10 -9 ------------- Run | Scr Mat Mat Turns Passed 502 | 47 229 226 Spaces Moved 246 | 37 149 60 Core 4 | 4 . . Treads . | . . . Legs . | . . . Wheels 242 | 33 149 60 Hover . | . . . Flight . | . . . Fastest Speed 50 | 50 100 100 Average Speed 99 | 94 100 100 Slowest Speed 100 | 100 100 100 Overloaded Moves . | . . . Propulsion Burnouts . | . . . Robots Hopped . | . . . Cave-ins Triggered . | . . . Exploration Rate (%) 20 | 3 47 10 Regions Visited 2 Branch Regions . Pre-discovered Areas . | . . . Known Exits Taken . | . . . Unknown Exits Taken 2 | 1 1 . Scrap Searched . | . . . Spaces Dug . | . . . Terrain Destroyed . | . . . Melee . | . . . Projectile . | . . . AOE . | . . . Terrain Rammed . | . . . Walls Destroyed . | . . . Machines Disabled . | . . . Actions | -11 -10 -9 --------- Run | Scr Mat Mat Total 451 | 46 181 224 Wait 161 | . . 161 Move 244 | 36 148 60 Hop . | . . . Pick Up 4 | 4 . . Fast Attach 10 | 6 1 3 Attach 2 | . 2 . Detach . | . . . Swap . | . . . Drop . | . . . Fire 28 | . 28 . Melee . | . . . Ram 2 | . 2 . Kick . | . . . Crush . | . . . Escape Stasis . | . . . Rewire . | . . . Trap . | . . . Miscellaneous . | . . . Route ------- -11/Scrapyard -10/Materials (discovered 2 exits: *Mat / [*Min]) -9/Materials History --------- Turn | Location | Event 15 | -11/Scrapyard | Discovered new exit (range 16) 48 | -11/Scrapyard | Entered Materials 168 | -10/Materials | Discovered new exit (range 16) 197 | -10/Materials | Core integrity fell below 50% 247 | -10/Materials | Discovered new exit (range 12) 253 | -10/Materials | Lost 4 parts (2p1n1w) 277 | -10/Materials | Entered another Materials area 277 | -9/Materials | Evolved 2 slots: Utility x1, Weapon x1 305 | -9/Materials | Build established: Mutant 503 | -9/Materials | Self-destructed Last Messages --------------- 00311_ K-01 Serf cleans the Processing Tank. 00313_ Connecting with Terminal... 00313_ Current location identified: Materials >>Layout(Zone) Retrieving Zone 8Y layout... Downloaded map data. >>Trojan(Track) Trojan loaded successfully. Testing... Tracking enabled and active. >>Trojan(Botnet) Trojan loaded successfully. Testing... Terminal linked with 0 systems. Awaiting botnet instructions. 00315_ K-01 Serf cleans the Processing Tank. 00319_ K-01 Serf collects debris. 00320_ Acquired Visual Processing Unit. 00323_ K-01 Serf collects debris. 00335_ Acquired Autogun. Map ----- +----------------------------------------------------+ | ????????????????????? ?????????? | | ????????????????????? #####????? | | ????????????????????# ???? | | ????????????????????# ?? | | ????????????????????# ?? | | ????????????????????# #?? | | ????????????????????# #?? | | ????????????????????# #?? | | ????????????????????# #?? | | ????????????????????# ???? | | ????????????????????# ##+### | | ????????????????????# # | | ????????????????????# # "" | | ????????????######### # "" | | ????????????# # "" | | ????????????# + | | ????????????# # "" | | ????????????############ # "" | | ???????????????????????# # "" | | ?????########??????????# # | | ?????# #??????????#k # | | ?????# !#??????????# # | | ?????#[ #??????????# ###### | | ?????#[ ############ r | | ?????#[ =## # | | ?????# @ ## T # | | ?????####/#### # k | | ???????# g ### + | | ???????# g + """"" # !!! | | ???????# ### """"" # !! | | ???????## ##?# """""k^ # !! | | ??????### #??# ######## | | ??????" # #??####+######??????# | | ??????" # #?????# #???????????# | | ?????? # #?????# #???????????# | | ?????? # ####### ############# | | ?????? # w | | ?????? + | | ?????? # | | ?????? ### ############+#### | | ?????? #?# #??# """" # | | ????????????????????????????????? | | ????????????????????????????????? | | ????????????????????????????????? | | ????????????????????????????????? | | ????????????????????????????????? | | ????????????????????????????????? | | ????????????????????????????????? | | ????????????????????????????????? | | ????????????????????????????????? | +----------------------------------------------------+ Best States ------------- Heat Dissipation 28 Energy Generation 10 Energy Capacity 125 Matter Stores 300 Matter Capacity 300 Sight Range 18 Terrain Scan Density 10 Evasion (%) 40 Item Schematics ----------------- None Robot Schematics ------------------ None Fabricated ------------ Nothing Alien Tech Used ----------------- None Achievements -------------- None Challenges ------------ None Game ------ Seed PortableFlakReactor Manual? 0 Play Time 00:05:38 Cumulative 104.6 hours Start 2021.01.03 @ 19:06:59 End 2021.01.03 @ 19:12:28 Sessions 1 Manual Loads 0 Difficulty Rogue Special Mode None Game No. 193 Rogue 189 Adventurer 0 Explorer 4 Win Type - Total 0 Types 0/0/0/0/0/0/0/0/0 Lore% 62 Gallery% 69 Achievement% 47 Wizard Run 0 Options --------- ASCII 1 Keyboard 1 Movement Numpad Keybinds 0 Fullscreen 1 Font 18/SmallcapsGlow Map View 76x50 Tactical HUD 1 Map Filters NONE Filters NONE Steam 1 RUN: 59bcba66-8624-430a-8aea-9edd9556e9c0